[Event "Early-Titled-Tuesday-Blitz-January-16-2024"]
[Site "Chess.com"]
[Date "2024.01.16"]
[Round "7"]
[White "dosto07"]
[Black "Sychev_Klementy"]
[Result "0-1"]
[WhiteElo "2529"]
[BlackElo "2769"]
[TimeControl "180+1"]
[EndTime "9:23:16 PST"]
[Termination "Sychev_Klementy won by resignation"]

1. e4 {[%clk 0:03:00.9]} 1... e5 {[%clk 0:02:59.8]} 2. Nf3 {[%clk 0:03:01]} 2...
Nc6 {[%clk 0:03:00.5]} 3. Bb5 {[%clk 0:03:01.4]} 3... a6 {[%clk 0:03:01.2]} 4.
Ba4 {[%clk 0:03:01.7]} 4... f5 {[%clk 0:03:01.8]} 5. d3 {[%clk 0:03:00.9]} 5...
fxe4 {[%clk 0:03:02]} 6. dxe4 {[%clk 0:03:01.3]} 6... Nf6 {[%clk 0:03:02.7]} 7.
Qd3 {[%clk 0:02:36.8]} 7... d6 {[%clk 0:02:59.2]} 8. O-O {[%clk 0:02:34.9]} 8...
Be7 {[%clk 0:02:58.6]} 9. Bg5 {[%clk 0:02:26]} 9... Be6 {[%clk 0:02:47.2]} 10.
Bb3 {[%clk 0:02:24.1]} 10... Qd7 {[%clk 0:02:46.9]} 11. Bxe6 {[%clk 0:02:22.1]}
11... Qxe6 {[%clk 0:02:46.9]} 12. Nc3 {[%clk 0:02:22.4]} 12... Nb4 {[%clk
0:02:41.8]} 13. Qe2 {[%clk 0:02:18.8]} 13... O-O {[%clk 0:02:41.3]} 14. a3
{[%clk 0:02:13.3]} 14... Nc6 {[%clk 0:02:36.9]} 15. Bxf6 {[%clk 0:02:12.6]}
15... Rxf6 {[%clk 0:02:35.2]} 16. Nd5 {[%clk 0:02:11.9]} 16... Rg6 {[%clk
0:02:26.9]} 17. Nxc7 {[%clk 0:02:03.1]} 17... Qg4 {[%clk 0:02:23.9]} 18. g3
{[%clk 0:02:00.9]} 18... Rf8 {[%clk 0:02:21.8]} 19. Kg2 {[%clk 0:01:52.6]} 19...
Rgf6 {[%clk 0:02:12.3]} 20. Ng1 {[%clk 0:01:44.3]} 20... Qg6 {[%clk 0:02:05.7]}
21. Nd5 {[%clk 0:01:38.7]} 21... R6f7 {[%clk 0:02:05.8]} 22. c3 {[%clk
0:01:36.7]} 22... Nd8 {[%clk 0:02:03.9]} 23. Rad1 {[%clk 0:01:30.2]} 23... Ne6
{[%clk 0:02:03.6]} 24. Kh1 {[%clk 0:01:16.7]} 24... Bd8 {[%clk 0:02:02.8]} 25.
f3 {[%clk 0:01:05.1]} 25... h5 {[%clk 0:02:00.2]} 26. Qg2 {[%clk 0:01:01.2]}
26... Ng5 {[%clk 0:01:56]} 27. Ne3 {[%clk 0:00:35.9]} 27... Bb6 {[%clk
0:01:51.1]} 28. Nf5 {[%clk 0:00:35.6]} 28... Rxf5 {[%clk 0:01:51.7]} 29. exf5
{[%clk 0:00:35.4]} 29... Rxf5 {[%clk 0:01:52.4]} 30. Nh3 {[%clk 0:00:29.3]}
30... Nf7 {[%clk 0:01:49.5]} 31. Qc2 {[%clk 0:00:20.7]} 31... Qe6 {[%clk
0:01:35.2]} 32. Qe4 {[%clk 0:00:18.1]} 32... Rf6 {[%clk 0:01:35.1]} 33. Kg2
{[%clk 0:00:15.8]} 33... Qd7 {[%clk 0:01:32.2]} 34. Qd5 {[%clk 0:00:15.5]} 34...
Kh8 {[%clk 0:01:30.5]} 35. c4 {[%clk 0:00:13.9]} 35... Qc7 {[%clk 0:01:29.5]}
36. b4 {[%clk 0:00:13.5]} 36... Bd4 {[%clk 0:01:28.7]} 37. Rxd4 {[%clk
0:00:11.6]} 37... exd4 {[%clk 0:01:28.1]} 38. Qxd4 {[%clk 0:00:12.2]} 38... Ne5
{[%clk 0:01:24.5]} 39. Nf4 {[%clk 0:00:11.7]} 39... Qxc4 {[%clk 0:01:21.7]} 40.
Qxc4 {[%clk 0:00:10.8]} 40... Nxc4 {[%clk 0:01:22.6]} 41. Rc1 {[%clk 0:00:09.2]}
41... b5 {[%clk 0:01:16.2]} 42. a4 {[%clk 0:00:08.6]} 42... h4 {[%clk
0:01:14.2]} 43. axb5 {[%clk 0:00:07.3]} 43... axb5 {[%clk 0:01:14.5]} 44. Ra1
{[%clk 0:00:07.4]} 44... hxg3 {[%clk 0:01:10.4]} 45. hxg3 {[%clk 0:00:07.8]}
45... g5 {[%clk 0:01:10.8]} 46. Ra8+ {[%clk 0:00:07.2]} 46... Kh7 {[%clk
0:01:10.7]} 47. Ra7+ {[%clk 0:00:06.5]} 47... Kh6 {[%clk 0:01:11.2]} 48. Nd5
{[%clk 0:00:06.7]} 48... Rf5 {[%clk 0:01:08.9]} 49. Nc3 {[%clk 0:00:04.3]} 49...
Re5 {[%clk 0:00:47]} 50. Rd7 {[%clk 0:00:02.5]} 50... Kg6 {[%clk 0:00:36.5]} 51.
Ne4 {[%clk 0:00:02.4]} 51... g4 {[%clk 0:00:36.1]} 52. Nxd6 {[%clk 0:00:01.9]}
52... Re2+ {[%clk 0:00:36.2]} 53. Kf1 {[%clk 0:00:02.2]} 53... gxf3 {[%clk
0:00:27.4]} 54. Nxc4 {[%clk 0:00:02.5]} 54... bxc4 {[%clk 0:00:28]} 55. Rd4
{[%clk 0:00:01.8]} 55... c3 {[%clk 0:00:25.8]} 56. Rc4 {[%clk 0:00:01.5]} 56...
c2 {[%clk 0:00:25.8]} 57. Rc3 {[%clk 0:00:01.7]} 57... Rd2 {[%clk 0:00:25.7]}
58. Ke1 {[%clk 0:00:01.2]} 58... Rd1+ {[%clk 0:00:26.1]} 59. Kf2 {[%clk
0:00:01.4]} 59... c1=Q {[%clk 0:00:26.6]} 60. Rxc1 {[%clk 0:00:02.1]} 60... Rxc1
{[%clk 0:00:27.4]} 61. Kxf3 {[%clk 0:00:03]} 61... Rb1 {[%clk 0:00:28]} 62. b5
{[%clk 0:00:02.5]} 62... Rxb5 {[%clk 0:00:28.2]} 63. Kg4 {[%clk 0:00:03.4]}
63... Rb4+ {[%clk 0:00:28.4]} 64. Kh3 {[%clk 0:00:04.3]} 64... Kg5 {[%clk
0:00:29]} 65. g4 {[%clk 0:00:05.2]} 65... Rb3+ {[%clk 0:00:28.8]} 66. Kg2 {[%clk
0:00:04.6]} 66... Kxg4 {[%clk 0:00:29.7]} 67. Kf2 {[%clk 0:00:05]} 67... Kf4
{[%clk 0:00:29.4]} 68. Ke2 {[%clk 0:00:05.9]} 68... Ke4 {[%clk 0:00:29.7]} 69.
Kd2 {[%clk 0:00:06.8]} 69... Kd4 {[%clk 0:00:29.9]} 70. Kc2 {[%clk 0:00:07.7]}
70... Rh3 {[%clk 0:00:30.1]} 0-1

[Event "Early-Titled-Tuesday-Blitz-January-16-2024"]
[Site "Chess.com"]
[Date "2024.01.16"]
[Round "7"]
[White "artin10862"]
[Black "Rud_Makarian"]
[Result "0-1"]
[WhiteElo "2916"]
[BlackElo "3039"]
[TimeControl "180+1"]
[EndTime "9:23:17 PST"]
[Termination "Rud_Makarian won on time"]

1. Nf3 {[%clk 0:02:59.9]} 1... Nf6 {[%clk 0:02:59.9]} 2. c4 {[%clk 0:02:55.3]}
2... e6 {[%clk 0:02:59.5]} 3. Nc3 {[%clk 0:02:55]} 3... d5 {[%clk 0:03:00.4]} 4.
e3 {[%clk 0:02:54.4]} 4... dxc4 {[%clk 0:03:01]} 5. Bxc4 {[%clk 0:02:53.7]} 5...
a6 {[%clk 0:03:01.7]} 6. O-O {[%clk 0:02:44.3]} 6... b5 {[%clk 0:03:02.1]} 7.
Be2 {[%clk 0:02:43.4]} 7... Bb7 {[%clk 0:03:02.8]} 8. b3 {[%clk 0:02:42.5]} 8...
c5 {[%clk 0:03:02.6]} 9. Bb2 {[%clk 0:02:42.8]} 9... Nbd7 {[%clk 0:03:03.3]} 10.
Rc1 {[%clk 0:02:41.7]} 10... Be7 {[%clk 0:03:03.1]} 11. a4 {[%clk 0:02:39.3]}
11... b4 {[%clk 0:03:03]} 12. Nb1 {[%clk 0:02:39.5]} 12... O-O {[%clk
0:03:03.6]} 13. d3 {[%clk 0:02:39.7]} 13... Nd5 {[%clk 0:03:01.9]} 14. Nbd2
{[%clk 0:02:38.2]} 14... Rc8 {[%clk 0:03:00.1]} 15. Nc4 {[%clk 0:02:37.5]} 15...
Bf6 {[%clk 0:02:54.7]} 16. Nfe5 {[%clk 0:02:21.7]} 16... Nxe5 {[%clk 0:02:49.1]}
17. Nxe5 {[%clk 0:02:20]} 17... Qc7 {[%clk 0:02:47.4]} 18. d4 {[%clk 0:02:19.8]}
18... Bxe5 {[%clk 0:02:29]} 19. dxe5 {[%clk 0:02:19.4]} 19... Rfd8 {[%clk
0:02:28.6]} 20. Qc2 {[%clk 0:02:14.9]} 20... a5 {[%clk 0:02:18.6]} 21. e4 {[%clk
0:02:03.2]} 21... Nb6 {[%clk 0:02:06.1]} 22. Rfd1 {[%clk 0:01:57.6]} 22... Rxd1+
{[%clk 0:02:01.3]} 23. Rxd1 {[%clk 0:01:55.7]} 23... c4 {[%clk 0:01:54.9]} 24.
bxc4 {[%clk 0:01:40.6]} 24... h6 {[%clk 0:01:37.4]} 25. Rd6 {[%clk 0:01:25.2]}
25... Nxc4 {[%clk 0:01:06.3]} 26. Bxc4 {[%clk 0:01:11.2]} 26... Qxc4 {[%clk
0:01:03]} 27. Rd8+ {[%clk 0:01:11.2]} 27... Rxd8 {[%clk 0:00:59]} 28. Qxc4
{[%clk 0:01:11]} 28... Rd1+ {[%clk 0:00:58.6]} 29. Qf1 {[%clk 0:01:08.9]} 29...
Rxf1+ {[%clk 0:00:59.3]} 30. Kxf1 {[%clk 0:01:09.8]} 30... Bxe4 {[%clk
0:00:45.8]} 31. Bd4 {[%clk 0:00:56.1]} 31... Bc6 {[%clk 0:00:39.3]} 32. Bb6
{[%clk 0:00:50.6]} 32... b3 {[%clk 0:00:37.5]} 33. Bd4 {[%clk 0:00:49.8]} 33...
Bxa4 {[%clk 0:00:38.1]} 34. Ke1 {[%clk 0:00:49.4]} 34... Bc6 {[%clk 0:00:38.1]}
35. f3 {[%clk 0:00:47]} 35... g5 {[%clk 0:00:36.3]} 36. Kf2 {[%clk 0:00:45]}
36... a4 {[%clk 0:00:36.2]} 37. Bb2 {[%clk 0:00:44.6]} 37... Bd5 {[%clk
0:00:31.8]} 38. Ke3 {[%clk 0:00:39.5]} 38... Kg7 {[%clk 0:00:31.1]} 39. g4
{[%clk 0:00:31.9]} 39... Kf8 {[%clk 0:00:13.6]} 40. f4 {[%clk 0:00:26.3]} 40...
Ke7 {[%clk 0:00:12.3]} 41. fxg5 {[%clk 0:00:17]} 41... hxg5 {[%clk 0:00:13.2]}
42. Kd4 {[%clk 0:00:17.3]} 42... Bf3 {[%clk 0:00:08.1]} 43. Bc1 {[%clk
0:00:16.5]} 43... Kd7 {[%clk 0:00:07]} 44. Kc3 {[%clk 0:00:15.2]} 44... Bxg4
{[%clk 0:00:03.4]} 45. Bxg5 {[%clk 0:00:13.7]} 45... Kc6 {[%clk 0:00:03.3]} 46.
Kb2 {[%clk 0:00:12.6]} 46... Kb5 {[%clk 0:00:03.3]} 47. Be7 {[%clk 0:00:12.5]}
47... Kc4 {[%clk 0:00:03.4]} 48. Bf8 {[%clk 0:00:07.9]} 48... Bh5 {[%clk
0:00:02.9]} 49. h3 {[%clk 0:00:05.5]} 49... f5 {[%clk 0:00:02.2]} 50. exf6
{[%clk 0:00:05.3]} 50... e5 {[%clk 0:00:02.9]} 51. Bh6 {[%clk 0:00:02.3]} 51...
e4 {[%clk 0:00:03.2]} 52. Ka3 {[%clk 0:00:02.5]} 52... Kd3 {[%clk 0:00:03.6]}
53. f7 {[%clk 0:00:02.3]} 53... Bxf7 {[%clk 0:00:03.3]} 0-1

[Event "Early-Titled-Tuesday-Blitz-January-16-2024"]
[Site "Chess.com"]
[Date "2024.01.16"]
[Round "7"]
[White "PawnEatingZombie"]
[Black "sansanathalia"]
[Result "1/2-1/2"]
[WhiteElo "2152"]
[BlackElo "2387"]
[TimeControl "180+1"]
[EndTime "9:23:18 PST"]
[Termination "Game drawn by repetition"]

1. e4 {[%clk 0:02:55.9]} 1... c5 {[%clk 0:02:58.9]} 2. c3 {[%clk 0:02:55.6]}
2... Nf6 {[%clk 0:02:57]} 3. e5 {[%clk 0:02:55.2]} 3... Nd5 {[%clk 0:02:54]} 4.
Nf3 {[%clk 0:02:55.7]} 4... Nc6 {[%clk 0:02:50.5]} 5. Bc4 {[%clk 0:02:54.6]}
5... Nb6 {[%clk 0:02:48.2]} 6. Bb3 {[%clk 0:02:55.1]} 6... d6 {[%clk 0:02:45.8]}
7. exd6 {[%clk 0:02:54.5]} 7... Qxd6 {[%clk 0:02:46.1]} 8. O-O {[%clk 0:02:53]}
8... g6 {[%clk 0:02:36.8]} 9. a4 {[%clk 0:02:47]} 9... a5 {[%clk 0:02:32.6]} 10.
Na3 {[%clk 0:02:38.2]} 10... Bg7 {[%clk 0:02:23.8]} 11. Nb5 {[%clk 0:02:35.6]}
11... Qd8 {[%clk 0:02:21]} 12. d3 {[%clk 0:02:17.1]} 12... O-O {[%clk
0:02:10.1]} 13. Re1 {[%clk 0:02:15.9]} 13... Bg4 {[%clk 0:01:56.7]} 14. h3
{[%clk 0:02:14.3]} 14... Bxf3 {[%clk 0:01:51.3]} 15. Qxf3 {[%clk 0:02:14.7]}
15... e6 {[%clk 0:01:46.6]} 16. Bf4 {[%clk 0:02:13.3]} 16... e5 {[%clk
0:01:38.4]} 17. Be3 {[%clk 0:02:02.2]} 17... Qe7 {[%clk 0:01:34.4]} 18. Rad1
{[%clk 0:01:51.1]} 18... Rad8 {[%clk 0:01:29.9]} 19. d4 {[%clk 0:01:41.6]} 19...
cxd4 {[%clk 0:01:23.9]} 20. Bxd4 {[%clk 0:01:14.4]} 20... Nxd4 {[%clk
0:00:55.4]} 21. cxd4 {[%clk 0:01:14.3]} 21... Qb4 {[%clk 0:00:44.2]} 22. dxe5
{[%clk 0:01:13.5]} 22... Nxa4 {[%clk 0:00:22.4]} 23. Bxf7+ {[%clk 0:00:59.2]}
23... Rxf7 {[%clk 0:00:19.4]} 24. Rxd8+ {[%clk 0:00:57.6]} 24... Bf8 {[%clk
0:00:19.6]} 25. Qe2 {[%clk 0:00:45.9]} 25... Nxb2 {[%clk 0:00:18.9]} 26. e6
{[%clk 0:00:44.3]} 26... Re7 {[%clk 0:00:18.7]} 27. Red1 {[%clk 0:00:31.9]}
27... Nc4 {[%clk 0:00:16.4]} 28. Nd4 {[%clk 0:00:20.6]} 28... Qc5 {[%clk
0:00:14.1]} 29. Nf3 {[%clk 0:00:18.9]} 29... a4 {[%clk 0:00:13.1]} 30. Rc1
{[%clk 0:00:09]} 30... b5 {[%clk 0:00:12.8]} 31. Rd7 {[%clk 0:00:05]} 31... a3
{[%clk 0:00:10.4]} 32. Rxe7 {[%clk 0:00:05]} 32... Bxe7 {[%clk 0:00:10.8]} 33.
Qc2 {[%clk 0:00:04.4]} 33... Qd6 {[%clk 0:00:08.1]} 34. Qb3 {[%clk 0:00:04.5]}
34... Qa6 {[%clk 0:00:07]} 35. Nd4 {[%clk 0:00:03.2]} 35... a2 {[%clk
0:00:06.3]} 36. Ra1 {[%clk 0:00:02.8]} 36... Bf6 {[%clk 0:00:05.4]} 37. Rxa2
{[%clk 0:00:03]} 37... Qd6 {[%clk 0:00:04.4]} 38. Nxb5 {[%clk 0:00:03.9]} 38...
Qxe6 {[%clk 0:00:02.3]} 39. Kh2 {[%clk 0:00:04.8]} 39... Be5+ {[%clk 0:00:01.3]}
40. g3 {[%clk 0:00:05.2]} 40... Qd5 {[%clk 0:00:01.7]} 41. Nc3 {[%clk 0:00:04]}
41... Qc5 {[%clk 0:00:01.3]} 42. Ra8+ {[%clk 0:00:03.8]} 42... Kg7 {[%clk
0:00:01.1]} 43. Qb7+ {[%clk 0:00:04.4]} 43... Kh6 {[%clk 0:00:01.7]} 44. Qf3
{[%clk 0:00:04.4]} 44... Qd4 {[%clk 0:00:01.9]} 45. Rf8 {[%clk 0:00:03.9]} 45...
Qxc3 {[%clk 0:00:01.9]} 46. Qxc3 {[%clk 0:00:03.9]} 46... Bxc3 {[%clk
0:00:02.8]} 47. Rc8 {[%clk 0:00:03.7]} 47... Bd4 {[%clk 0:00:03.1]} 48. Rxc4
{[%clk 0:00:03.6]} 48... Bxf2 {[%clk 0:00:03.8]} 49. Rf4 {[%clk 0:00:04]} 49...
Bd4 {[%clk 0:00:03.9]} 50. Kg2 {[%clk 0:00:04.3]} 50... Be5 {[%clk 0:00:04.4]}
51. Rf3 {[%clk 0:00:04.6]} 51... Bg7 {[%clk 0:00:03.6]} 52. Rd3 {[%clk
0:00:05.3]} 52... Be5 {[%clk 0:00:03.9]} 53. Kf3 {[%clk 0:00:06]} 53... Bf6
{[%clk 0:00:04]} 54. h4 {[%clk 0:00:06.7]} 54... g5 {[%clk 0:00:04.4]} 55. hxg5+
{[%clk 0:00:06.6]} 55... Kxg5 {[%clk 0:00:04.5]} 56. g4 {[%clk 0:00:07.4]} 56...
Kg6 {[%clk 0:00:05]} 57. Rd5 {[%clk 0:00:07.6]} 57... h6 {[%clk 0:00:05.7]} 58.
Kg3 {[%clk 0:00:07.9]} 58... Bg5 {[%clk 0:00:06]} 59. Kf3 {[%clk 0:00:08.1]}
59... Kf6 {[%clk 0:00:04.6]} 60. Ke4 {[%clk 0:00:08.5]} 60... Ke6 {[%clk
0:00:05.1]} 61. Rxg5 {[%clk 0:00:07.6]} 61... hxg5 {[%clk 0:00:05.1]} 62. Kd4
{[%clk 0:00:07.9]} 62... Kd6 {[%clk 0:00:05.6]} 63. Ke4 {[%clk 0:00:08.5]} 63...
Ke6 {[%clk 0:00:06.2]} 64. Kd4 {[%clk 0:00:08.9]} 64... Kd6 {[%clk 0:00:06.8]}
65. Ke4 {[%clk 0:00:09.2]} 65... Ke6 {[%clk 0:00:07.5]} 1/2-1/2

[Event "Early-Titled-Tuesday-Blitz-January-16-2024"]
[Site "Chess.com"]
[Date "2024.01.16"]
[Round "7"]
[White "GMT4114"]
[Black "AlexandraSamaganova"]
[Result "0-1"]
[WhiteElo "1984"]
[BlackElo "2297"]
[TimeControl "180+1"]
[EndTime "9:23:18 PST"]
[Termination "AlexandraSamaganova won on time"]

1. e4 {[%clk 0:03:00.8]} 1... c5 {[%clk 0:02:56.6]} 2. Nc3 {[%clk 0:03:00.4]}
2... e6 {[%clk 0:02:56.4]} 3. Nge2 {[%clk 0:02:58.8]} 3... a6 {[%clk 0:02:54.7]}
4. g3 {[%clk 0:02:58.2]} 4... b5 {[%clk 0:02:49.7]} 5. Bg2 {[%clk 0:02:58.6]}
5... Bb7 {[%clk 0:02:47.3]} 6. d4 {[%clk 0:02:59.1]} 6... cxd4 {[%clk
0:02:43.3]} 7. Nxd4 {[%clk 0:03:00]} 7... Qc7 {[%clk 0:02:43.4]} 8. O-O {[%clk
0:02:58.7]} 8... Nc6 {[%clk 0:02:33.8]} 9. Re1 {[%clk 0:02:56.8]} 9... Be7
{[%clk 0:02:04.4]} 10. Nd5 {[%clk 0:02:50.9]} 10... Qd8 {[%clk 0:01:40.8]} 11.
Nxe7 {[%clk 0:02:13.7]} 11... Ngxe7 {[%clk 0:01:40.1]} 12. Qg4 {[%clk
0:02:06.8]} 12... O-O {[%clk 0:01:35.1]} 13. Nxc6 {[%clk 0:02:04.5]} 13... Bxc6
{[%clk 0:01:34.7]} 14. Bh6 {[%clk 0:02:04.6]} 14... Ng6 {[%clk 0:01:34.6]} 15.
Bg5 {[%clk 0:02:01.5]} 15... Qb6 {[%clk 0:01:28]} 16. h4 {[%clk 0:02:00.8]}
16... f5 {[%clk 0:01:03.3]} 17. exf5 {[%clk 0:01:47.1]} 17... Bxg2 {[%clk
0:01:02]} 18. Be3 {[%clk 0:01:33]} 18... Qb7 {[%clk 0:00:45.2]} 19. fxg6 {[%clk
0:01:28.8]} 19... hxg6 {[%clk 0:00:26.1]} 20. Rad1 {[%clk 0:01:12.7]} 20... Bf3
{[%clk 0:00:16.1]} 21. Qxg6 {[%clk 0:01:08.8]} 21... Rf6 {[%clk 0:00:13.4]} 22.
Qd3 {[%clk 0:00:49.7]} 22... Bh1 {[%clk 0:00:08.3]} 23. Qf1 {[%clk 0:00:37.4]}
23... Raf8 {[%clk 0:00:04.7]} 24. Rd2 {[%clk 0:00:33.1]} 24... Bf3 {[%clk
0:00:04.5]} 25. c3 {[%clk 0:00:27.7]} 25... d5 {[%clk 0:00:04.2]} 26. Bd4 {[%clk
0:00:26.9]} 26... R6f7 {[%clk 0:00:04.2]} 27. Rxe6 {[%clk 0:00:25.8]} 27... Qd7
{[%clk 0:00:03.5]} 28. Qe1 {[%clk 0:00:21.7]} 28... Be4 {[%clk 0:00:03.1]} 29.
Rxe4 {[%clk 0:00:20.5]} 29... dxe4 {[%clk 0:00:03.3]} 30. Qxe4 {[%clk
0:00:21.4]} 30... Qh3 {[%clk 0:00:02.8]} 31. Qg2 {[%clk 0:00:19.6]} 31... Qg4
{[%clk 0:00:02.7]} 32. Qf1 {[%clk 0:00:16.5]} 32... Qf5 {[%clk 0:00:03.1]} 33.
Rd1 {[%clk 0:00:15.9]} 33... Qg4 {[%clk 0:00:03.5]} 34. Re1 {[%clk 0:00:15.1]}
34... Rf3 {[%clk 0:00:03.6]} 35. Qe2 {[%clk 0:00:14.6]} 35... Qf5 {[%clk
0:00:03.5]} 36. Qe6+ {[%clk 0:00:14.6]} 36... Qxe6 {[%clk 0:00:03.6]} 37. Rxe6
{[%clk 0:00:15.5]} 37... Rd3 {[%clk 0:00:03.9]} 38. Re2 {[%clk 0:00:12.6]} 38...
Rd1+ {[%clk 0:00:03.6]} 39. Kg2 {[%clk 0:00:12.8]} 39... Rf7 {[%clk 0:00:04.1]}
40. g4 {[%clk 0:00:11.8]} 40... Kh7 {[%clk 0:00:04.4]} 41. Kg3 {[%clk
0:00:11.7]} 41... Ra1 {[%clk 0:00:04.8]} 42. a3 {[%clk 0:00:11.5]} 42... Rg1+
{[%clk 0:00:04.9]} 43. Kh3 {[%clk 0:00:10.2]} 43... Rd1 {[%clk 0:00:05]} 44. h5
{[%clk 0:00:08.6]} 44... Rd3+ {[%clk 0:00:05]} 45. Kg2 {[%clk 0:00:08.4]} 45...
Rd1 {[%clk 0:00:04.5]} 46. Kh3 {[%clk 0:00:08.3]} 46... Rd3+ {[%clk 0:00:04]}
47. Kg2 {[%clk 0:00:08.4]} 47... Rf4 {[%clk 0:00:03.8]} 48. f3 {[%clk
0:00:05.6]} 48... Rfxf3 {[%clk 0:00:03.9]} 49. Re7 {[%clk 0:00:05.8]} 49... Rg3+
{[%clk 0:00:04.1]} 50. Kf2 {[%clk 0:00:05.1]} 50... Rxg4 {[%clk 0:00:04.6]} 51.
Ke2 {[%clk 0:00:06]} 51... Rh3 {[%clk 0:00:04]} 52. h6 {[%clk 0:00:04.6]} 52...
Rxh6 {[%clk 0:00:03.8]} 53. a4 {[%clk 0:00:02.7]} 53... Rh3 {[%clk 0:00:03.2]}
0-1

[Event "Early-Titled-Tuesday-Blitz-January-16-2024"]
[Site "Chess.com"]
[Date "2024.01.16"]
[Round "7"]
[White "The_Straightforward_Rook"]
[Black "RodokininEV"]
[Result "0-1"]
[WhiteElo "2471"]
[BlackElo "2619"]
[TimeControl "180+1"]
[EndTime "9:23:22 PST"]
[Termination "RodokininEV won by checkmate"]

1. e4 {[%clk 0:03:00.9]} 1... e5 {[%clk 0:02:47.2]} 2. Nf3 {[%clk 0:03:00.3]}
2... Nc6 {[%clk 0:02:48.1]} 3. Bc4 {[%clk 0:02:59.9]} 3... Bc5 {[%clk
0:02:47.7]} 4. d3 {[%clk 0:03:00.3]} 4... Nf6 {[%clk 0:02:46.6]} 5. Bg5 {[%clk
0:03:00.9]} 5... d6 {[%clk 0:02:43]} 6. c3 {[%clk 0:03:00.6]} 6... a5 {[%clk
0:02:41.8]} 7. Nbd2 {[%clk 0:02:58.9]} 7... Ba7 {[%clk 0:02:40.5]} 8. O-O {[%clk
0:02:58.7]} 8... h6 {[%clk 0:02:38.8]} 9. Bh4 {[%clk 0:02:58.3]} 9... g5 {[%clk
0:02:39]} 10. Bg3 {[%clk 0:02:58]} 10... O-O {[%clk 0:02:37]} 11. Kh1 {[%clk
0:02:55.5]} 11... Qe7 {[%clk 0:02:35.2]} 12. Bb5 {[%clk 0:02:45.2]} 12... Bd7
{[%clk 0:02:33.1]} 13. Nc4 {[%clk 0:02:42.8]} 13... Rfe8 {[%clk 0:02:28.6]} 14.
Ne3 {[%clk 0:02:41.2]} 14... Qf8 {[%clk 0:02:23.8]} 15. Re1 {[%clk 0:02:35.4]}
15... Qg7 {[%clk 0:02:11.2]} 16. h3 {[%clk 0:02:18.5]} 16... h5 {[%clk
0:02:07.5]} 17. Bxc6 {[%clk 0:02:06.2]} 17... bxc6 {[%clk 0:02:05.8]} 18. h4
{[%clk 0:02:02.7]} 18... g4 {[%clk 0:02:04.1]} 19. Ng1 {[%clk 0:01:59.4]} 19...
d5 {[%clk 0:01:56.6]} 20. Nf5 {[%clk 0:01:52.4]} 20... Bxf5 {[%clk 0:01:55.4]}
21. exf5 {[%clk 0:01:53.3]} 21... Nd7 {[%clk 0:01:50]} 22. Qd2 {[%clk
0:01:50.9]} 22... f6 {[%clk 0:01:50]} 23. d4 {[%clk 0:01:46.1]} 23... Qh7 {[%clk
0:01:43.2]} 24. dxe5 {[%clk 0:01:41]} 24... fxe5 {[%clk 0:01:44.1]} 25. Qg5+
{[%clk 0:01:40.5]} 25... Kh8 {[%clk 0:01:39.4]} 26. f6 {[%clk 0:01:31.9]} 26...
Rg8 {[%clk 0:01:32.1]} 27. Qd2 {[%clk 0:01:28.1]} 27... Rae8 {[%clk 0:01:25.8]}
28. c4 {[%clk 0:01:23.3]} 28... Nxf6 {[%clk 0:01:12.5]} 29. Bxe5 {[%clk
0:01:22.1]} 29... Rxe5 {[%clk 0:01:02]} 30. Rxe5 {[%clk 0:01:23]} 30... Ne4
{[%clk 0:01:02.9]} 31. Rxe4 {[%clk 0:01:14.7]} 31... dxe4 {[%clk 0:01:03.8]} 32.
Qxa5 {[%clk 0:01:10.1]} 32... Bxf2 {[%clk 0:01:01.1]} 33. Qe5+ {[%clk
0:01:10.5]} 33... Rg7 {[%clk 0:00:56.3]} 34. Qe8+ {[%clk 0:01:05.6]} 34... Rg8
{[%clk 0:00:52.1]} 35. Qe5+ {[%clk 0:01:06.2]} 35... Rg7 {[%clk 0:00:51.3]} 36.
Rd1 {[%clk 0:00:56.9]} 36... Bxh4 {[%clk 0:00:46.6]} 37. Rd7 {[%clk 0:00:54.2]}
37... Bg5 {[%clk 0:00:30.1]} 38. Qe8+ {[%clk 0:00:50.3]} 38... Qg8 {[%clk
0:00:26.8]} 39. Qxh5+ {[%clk 0:00:50.3]} 39... Rh7 {[%clk 0:00:25.1]} 40. Rxh7+
{[%clk 0:00:49.6]} 40... Qxh7 {[%clk 0:00:25.4]} 41. Qxh7+ {[%clk 0:00:50.1]}
41... Kxh7 {[%clk 0:00:26.2]} 42. Ne2 {[%clk 0:00:49.3]} 42... Be3 {[%clk
0:00:23]} 43. Kh2 {[%clk 0:00:47.8]} 43... Kg6 {[%clk 0:00:23.3]} 44. Kg3 {[%clk
0:00:48.1]} 44... Kg5 {[%clk 0:00:22.1]} 45. b4 {[%clk 0:00:43.7]} 45... c5
{[%clk 0:00:20.1]} 46. b5 {[%clk 0:00:43.4]} 46... Bd2 {[%clk 0:00:19.1]} 47. a4
{[%clk 0:00:43.4]} 47... Kf5 {[%clk 0:00:14.8]} 48. Kf2 {[%clk 0:00:37.2]} 48...
e3+ {[%clk 0:00:13.7]} 49. Kf1 {[%clk 0:00:35.9]} 49... Ke4 {[%clk 0:00:12.8]}
50. Nc1 {[%clk 0:00:27.6]} 50... Bxc1 {[%clk 0:00:10.6]} 51. a5 {[%clk
0:00:27.5]} 51... Kd3 {[%clk 0:00:08.7]} 52. a6 {[%clk 0:00:27.8]} 52... e2+
{[%clk 0:00:08.5]} 53. Kf2 {[%clk 0:00:28.2]} 53... Be3+ {[%clk 0:00:07.7]} 54.
Kg3 {[%clk 0:00:25]} 54... e1=Q+ {[%clk 0:00:07.8]} 55. Kxg4 {[%clk 0:00:25.9]}
55... Qa1 {[%clk 0:00:06.6]} 56. Kf5 {[%clk 0:00:26.8]} 56... Qa5 {[%clk
0:00:05.9]} 57. Ke6 {[%clk 0:00:27.7]} 57... Kxc4 {[%clk 0:00:06]} 58. Kd7
{[%clk 0:00:28.6]} 58... Kxb5 {[%clk 0:00:06.3]} 59. Kc8 {[%clk 0:00:29.5]}
59... Qxa6+ {[%clk 0:00:06.6]} 60. Kb8 {[%clk 0:00:29.8]} 60... Qa4 {[%clk
0:00:07.3]} 61. g4 {[%clk 0:00:30.5]} 61... Qxg4 {[%clk 0:00:08.2]} 62. Kb7
{[%clk 0:00:30.3]} 62... Qg2+ {[%clk 0:00:09.1]} 63. Kb8 {[%clk 0:00:31.1]}
63... Qd5 {[%clk 0:00:10]} 64. Kc8 {[%clk 0:00:31.8]} 64... c4 {[%clk
0:00:10.9]} 65. Kb8 {[%clk 0:00:32.7]} 65... c3 {[%clk 0:00:11.8]} 66. Kc8
{[%clk 0:00:33.6]} 66... c2 {[%clk 0:00:12.7]} 67. Kb8 {[%clk 0:00:34.5]} 67...
c5 {[%clk 0:00:13.6]} 68. Kc8 {[%clk 0:00:35.4]} 68... c4 {[%clk 0:00:14.5]} 69.
Kb8 {[%clk 0:00:36.3]} 69... c3 {[%clk 0:00:15.4]} 70. Kc8 {[%clk 0:00:37.2]}
70... Bd2 {[%clk 0:00:16.1]} 71. Kb8 {[%clk 0:00:38.1]} 71... c1=Q {[%clk
0:00:16.8]} 72. Kc8 {[%clk 0:00:39]} 72... Qa3 {[%clk 0:00:16.9]} 73. Kb8 {[%clk
0:00:39.9]} 73... Qaa8+ {[%clk 0:00:17]} 74. Kc7 {[%clk 0:00:39.6]} 74... Qdb7+
{[%clk 0:00:17.9]} 75. Kd6 {[%clk 0:00:39.7]} 75... Bf4+ {[%clk 0:00:17.8]} 76.
Ke6 {[%clk 0:00:39.8]} 76... Qc6+ {[%clk 0:00:17.8]} 77. Kf5 {[%clk 0:00:40.7]}
77... Qf8+ {[%clk 0:00:17.9]} 78. Kg4 {[%clk 0:00:41.6]} 78... Qg2+ {[%clk
0:00:17.9]} 79. Kh5 {[%clk 0:00:41.6]} 79... Qh6# {[%clk 0:00:16.5]} 0-1